[Event "EYCC Open U14 2021"]
[Site "Tornelo"]
[Date "2021.10.15"]
[Round "3.12"]
[White "Zlatkov, Anton"]
[Black "Zakharov, Alexey O."]
[Result "0-1"]
[ECO "B22"]
[WhiteElo "2154"]
[BlackElo "1962"]
[Annotator "NA"]
[PlyCount "76"]
[EventDate "2021.10.15"]
[EventType "swiss"]
[EventCountry "NET"]
[SourceTitle "playchess.com"]
[Source "ChessBase"]
[SourceQuality "1"]
[TimeControl "5400+30"]

1. e4 {[%emt 0:00:30]} c5 {[%emt 0:00:35]} 2. Nf3 {[%emt 0:00:06]} e6 {[%emt 0:00:05]} 3. c3 {[%emt 0:00:11]} Nf6 {[%emt 0:00:07]} 4. e5 {[%emt 0:00:11]} Nd5 {[%emt 0:00:07]} 5. d4 {[%emt 0:00:06]} cxd4 {[%emt 0:00:04]} 6. cxd4 {[%emt 0:00:10]} b6 {[%emt 0:00:07]} 7. Nc3 {[%emt 0:01:11]} Nxc3 {[%emt 0:00:07]} 8. bxc3 {[%emt 0:00:06]} Qc7 {[%emt 0:00:03]} 9. Bd2 {[%emt 0:01:41]} Bb7 {[%emt 0:00:10]} 10. Bd3 {[%emt 0:00:53]} d6 {[%emt 0:00:05]} 11. O-O {[%emt 0:01:12]} Nd7 {[%emt 0:00:10]} 12. Re1 {[%emt 0:01:45]} Be7 {[%emt 0:00:18]} 13. Rc1 {[%emt 0:07:23]} O-O {[%emt 0:00:53]} 14. Bf4 {[%emt 0:07:22]} Rac8 {[%emt 0:06:44]} 15. exd6 {[%emt 0:11:44]} Bxd6 {[%emt 0:00:12]} 16. Ne5 {[%emt 0:00:58]} Nxe5 {[%emt 0:04:48]} 17. dxe5 {[%emt 0:08:38]} Ba3 {[%emt 0:04:53]} 18. Rc2 {[%emt 0:05:15]} Rfd8 {[%emt 0:04:41]} 19. Re3 {[%emt 0:02:22]} Qc6 {[%emt 0:16:10]} 20. Rg3 {[%emt 0:02:00]} g6 {[%emt 0:02:26]} 21. Bg5 {[%emt 0:13:24]} Rd5 {[%emt 0:04:25]} 22. Qe2 {[%emt 0:03:35]} Qc7 {[%emt 0:08:40]} 23. Bf6 {[%emt 0:06:36]} Be7 {[%emt 0:01:10]} 24. Be4 {[%emt 0:01:39]} Ba6 {[%emt 0:06:37]} 25. Qf3 {[%emt 0:06:04]} Qxc3 {[%emt 0:10:38]} 26. Rxc3 {[%emt 0:03:56]} Rxc3 {[%emt 0:00:14]} 27. h4 {[%emt 0:00:38]} Rxf3 {[%emt 0:00:56]} 28. Rxf3 {[%emt 0:00:17]} Rd1+ {[%emt 0:01:09]} 29. Kh2 {[%emt 0:00:13]} Bc5 {[%emt 0:09:16]} 30. h5 {[%emt 0:07:19]} Rd2 {[%emt 0:01:25]} 31. hxg6 {[%emt 0:00:26]} fxg6 {[%emt 0:00:07]} 32. a4 {[%emt 0:00:33]} Rxf2 {[%emt 0:00:48]} 33. Rxf2 {[%emt 0:00:16]} Bxf2 {[%emt 0:00:04]} 34. Bc6 {[%emt 0:00:20]} Bc4 {[%emt 0:01:58]} 35. g4 {[%emt 0:01:09]} Kf7 {[%emt 0:00:54]} 36. Kg2 {[%emt 0:00:07]} Bd4 {[%emt 0:02:37]} 37. g5 {[%emt 0:00:07]} Bc5 {[%emt 0:00:37]} 38. Kg3 {[%emt 0:00:21]} a6 {[%emt 0:05:33]} 0-1

[Event "EYCC Open U14 2021"]
[Site "Tornelo"]
[Date "2021.10.15"]
[Round "4.2"]
[White "Seemann, Jakub"]
[Black "Gasparyan, Erik R."]
[Result "1-0"]
[ECO "E06"]
[WhiteElo "2299"]
[BlackElo "1777"]
[Annotator "ChessBase"]
[PlyCount "51"]
[EventDate "2021.10.15"]
[EventType "swiss"]
[EventCountry "NET"]
[SourceTitle "playchess.com"]
[Source "ChessBase"]
[SourceQuality "1"]
[TimeControl "5400+30"]

1. d4 {[%emt 0:00:30]} d5 {[%emt 0:00:51]} 2. c4 {[%emt 0:00:09]} e6 {[%emt 0:00:13]} 3. Nf3 {[%emt 0:00:18]} Be7 {[%emt 0:00:37]} 4. g3 {[%emt 0:00:25]} Nf6 {[%emt 0:00:35]} 5. Bg2 {[%emt 0:00:08]} O-O {[%emt 0:00:20]} 6. O-O {[%emt 0:00:08]} b6 {[%emt 0:01:33]} 7. cxd5 {[%emt 0:00:53]} Nxd5 {[%emt 0:01:19]} 8. e4 {[%emt 0:02:50]} Nf6 {[%emt 0:00:10]} 9. Nc3 {[%emt 0:01:24]} Bb7 {[%emt 0:00:32]} 10. Qc2 {[%emt 0:02:55]} Na6 {[%emt 0:03:59]} 11. Rd1 {[%emt 0:03:36]} Qe8 {[%emt 0:02:01]} 12. a3 {[%emt 0:16:23]} c5 {[%emt 0:10:23]} 13. d5 {[%emt 0:00:26]} Rd8 {[%emt 0:00:15]} 14. Re1 {[%emt 0:27:47]} exd5 {[%emt 0:25:39]} 15. exd5 {[%emt 0:00:21]} Qd7 {[%emt 0:01:31]} 16. Ne5 {[%emt 0:01:02]} Qc8 {[%emt 0:00:07]} 17. Nc6 {[%emt 0:04:13]} Bxc6 {[%emt 0:00:05]} 18. dxc6 {[%emt 0:00:23]} Bd6 {[%emt 0:09:12]} 19. Bg5 {[%emt 0:00:36]} Rde8 {[%emt 0:03:52]} 20. Bxf6 {[%emt 0:02:45]} gxf6 {[%emt 0:00:04]} 21. Nd5 {[%emt 0:05:41]} Kg7 {[%emt 0:00:38]} 22. Ne3 {[%emt 0:03:07]} Be5 {[%emt 0:03:05]} 23. Rad1 {[%emt 0:03:49]} Kh8 {[%emt 0:05:01]} 24. Rd7 {[%emt 0:01:38]} Nb8 {[%emt 0:00:43]} 25. Qf5 {[%emt 0:02:08]} Nxc6 {[%emt 0:01:38]} 26. Be4 {[%emt 0:00:12]} 1-0

[Event "EYCC Open U14 2021"]
[Site "Tornelo"]
[Date "2021.10.15"]
[Round "4.4"]
[White "Zakharov, Alexey O."]
[Black "Habans Aguerrea, Javier"]
[Result "1-0"]
[ECO "B13"]
[WhiteElo "1962"]
[BlackElo "2308"]
[Annotator "ChessBase"]
[PlyCount "93"]
[EventDate "2021.10.15"]
[EventType "swiss"]
[EventCountry "NET"]
[SourceTitle "playchess.com"]
[Source "ChessBase"]
[SourceQuality "1"]
[TimeControl "5400+30"]

1. e4 {[%emt 0:00:30]} c6 {[%emt 0:00:39]} 2. d4 {[%emt 0:00:09]} d5 {[%emt 0:00:05]} 3. exd5 {[%emt 0:00:13]} cxd5 {[%emt 0:00:07]} 4. Bd3 {[%emt 0:00:07]} Nc6 {[%emt 0:00:10]} 5. c3 {[%emt 0:00:05]} Qc7 {[%emt 0:00:06]} 6. Na3 {[%emt 0:00:06]} a6 {[%emt 0:01:31]} 7. Nc2 {[%emt 0:00:09]} Nf6 {[%emt 0:01:38]} 8. h3 {[%emt 0:00:08]} g6 {[%emt 0:05:27]} 9. Ne2 {[%emt 0:02:24]} Bf5 {[%emt 0:02:05]} 10. Bxf5 {[%emt 0:00:09]} gxf5 {[%emt 0:00:04]} 11. Bf4 {[%emt 0:03:22]} Qd7 {[%emt 0:00:47]} 12. O-O {[%emt 0:10:59]} e6 {[%emt 0:01:25]} 13. Qd2 {[%emt 0:05:12]} Bd6 {[%emt 0:08:01]} 14. Qe3 {[%emt 0:06:47]} Qc7 {[%emt 0:07:38]} 15. b4 {[%emt 0:07:02]} Bxf4 {[%emt 0:09:08]} 16. Nxf4 {[%emt 0:00:32]} O-O {[%emt 0:02:12]} 17. Qg3+ {[%emt 0:00:42]} Ng4 {[%emt 0:01:54]} 18. hxg4 {[%emt 0:00:09]} fxg4 {[%emt 0:00:05]} 19. Qxg4+ {[%emt 0:00:36]} Kh8 {[%emt 0:00:32]} 20. Qh4 {[%emt 0:01:43]} Qd8 {[%emt 0:01:12]} 21. Qxd8 {[%emt 0:00:22]} Rfxd8 {[%emt 0:00:06]} 22. Ne3 {[%emt 0:03:42]} Rac8 {[%emt 0:00:05]} 23. Rac1 {[%emt 0:01:21]} Rc7 {[%emt 0:00:03]} 24. Nd3 {[%emt 0:01:40]} b6 {[%emt 0:00:05]} 25. a4 {[%emt 0:03:07]} Rdc8 {[%emt 0:00:09]} 26. Ra1 {[%emt 0:04:50]} Ne7 {[%emt 0:00:07]} 27. Nd1 {[%emt 0:00:14]} Nf5 {[%emt 0:00:02]} 28. a5 {[%emt 0:01:16]} b5 {[%emt 0:00:03]} 29. Nc5 {[%emt 0:00:58]} Ra8 {[%emt 0:00:02]} 30. Ne3 {[%emt 0:00:23]} Nd6 {[%emt 0:00:09]} 31. f3 {[%emt 0:00:43]} Kg7 {[%emt 0:01:22]} 32. Kf2 {[%emt 0:02:13]} Kg6 {[%emt 0:00:39]} 33. g4 {[%emt 0:00:26]} h6 {[%emt 0:00:26]} 34. Ke2 {[%emt 0:00:22]} Kg5 {[%emt 0:00:07]} 35. Rh1 {[%emt 0:00:18]} Kg6 {[%emt 0:00:04]} 36. Kd2 {[%emt 0:00:38]} Re7 {[%emt 0:00:20]} 37. f4 {[%emt 0:00:50]} Kg7 {[%emt 0:00:07]} 38. f5 {[%emt 0:01:39]} exf5 {[%emt 0:00:30]} 39. gxf5 {[%emt 0:00:39]} Kh7 {[%emt 0:00:07]} 40. f6 {[%emt 0:01:33]} Ree8 {[%emt 0:00:05]} 41. Kd3 {[%emt 0:01:09]} Rg8 {[%emt 0:00:06]} 42. Rag1 {[%emt 0:00:39]} Rg6 {[%emt 0:00:10]} 43. Rxg6 {[%emt 0:00:55]} fxg6 {[%emt 0:00:03]} 44. Ng4 {[%emt 0:02:17]} h5 {[%emt 0:00:39]} 45. Ne5 {[%emt 0:00:08]} Rf8 {[%emt 0:00:08]} 46. Ncd7 {[%emt 0:01:28]} Rd8 {[%emt 0:00:07]} 47. Rf1 {[%emt 0:00:36]} 1-0

[Event "EYCC Open U14 2021"]
[Site "Tornelo"]
[Date "2021.10.15"]
[Round "4.5"]
[White "Shinkarov, Artem"]
[Black "Vergara Anton, Diego"]
[Result "1/2-1/2"]
[ECO "D35"]
[WhiteElo "1894"]
[BlackElo "2258"]
[Annotator "ChessBase"]
[PlyCount "83"]
[EventDate "2021.10.15"]
[EventType "swiss"]
[EventCountry "NET"]
[SourceTitle "playchess.com"]
[Source "ChessBase"]
[SourceQuality "1"]
[TimeControl "5400+30"]

1. d4 {[%emt 0:00:30]} d5 {[%emt 0:00:49]} 2. c4 {[%emt 0:00:12]} e6 {[%emt 0:00:08]} 3. Nc3 {[%emt 0:00:05]} Nf6 {[%emt 0:00:10]} 4. cxd5 {[%emt 0:00:04]} exd5 {[%emt 0:00:27]} 5. Bg5 {[%emt 0:00:04]} Be7 {[%emt 0:00:31]} 6. e3 {[%emt 0:00:04]} c6 {[%emt 0:00:18]} 7. Bd3 {[%emt 0:00:10]} Nbd7 {[%emt 0:00:15]} 8. Nge2 {[%emt 0:00:07]} O-O {[%emt 0:02:04]} 9. Ng3 {[%emt 0:00:16]} Nb6 {[%emt 0:15:08]} 10. h4 {[%emt 0:03:16]} Be6 {[%emt 0:08:15]} 11. Qc2 {[%emt 0:15:37]} h6 {[%emt 0:03:28]} 12. Nce2 {[%emt 0:05:17]} Rc8 {[%emt 0:09:31]} 13. Nf5 {[%emt 0:13:59]} Bxf5 {[%emt 0:03:39]} 14. Bxf5 {[%emt 0:00:29]} Nfd7 {[%emt 0:03:18]} 15. Bxe7 {[%emt 0:05:38]} Qxe7 {[%emt 0:00:51]} 16. Nc3 {[%emt 0:01:06]} Nc4 {[%emt 0:04:22]} 17. Bd3 {[%emt 0:05:53]} Nd6 {[%emt 0:01:07]} 18. g3 {[%emt 0:00:58]} Nf6 {[%emt 0:03:23]} 19. Na4 {[%emt 0:06:16]} Rfe8 {[%emt 0:05:08]} 20. Kf1 {[%emt 0:00:45]} Ng4 {[%emt 0:10:10]} 21. Kg2 {[%emt 0:05:12]} Ne4 {[%emt 0:04:39]} 22. Bxe4 {[%emt 0:00:24]} dxe4 {[%emt 0:00:47]} 23. h5 {[%emt 0:00:45]} Qg5 {[%emt 0:01:52]} 24. Qe2 {[%emt 0:01:55]} Rcd8 {[%emt 0:01:02]} 25. Rh4 {[%emt 0:00:37]} Nf6 {[%emt 0:00:22]} 26. Rc1 {[%emt 0:00:51]} Rd5 {[%emt 0:01:07]} 27. Rc5 {[%emt 0:05:07]} Rxc5 {[%emt 0:01:01]} 28. Nxc5 {[%emt 0:00:08]} Re7 {[%emt 0:00:41]} 29. a3 {[%emt 0:06:33]} Qf5 {[%emt 0:01:41]} 30. Na4 {[%emt 0:03:12]} b5 {[%emt 0:04:53]} 31. Nc3 {[%emt 0:01:47]} a5 {[%emt 0:00:43]} 32. Rf4 {[%emt 0:04:03]} Qd7 {[%emt 0:02:30]} 33. Qc2 {[%emt 0:01:34]} Qe6 {[%emt 0:02:03]} 34. Rh4 {[%emt 0:00:49]} Qf5 {[%emt 0:03:44]} 35. Qe2 {[%emt 0:00:36]} b4 {[%emt 0:01:05]} 36. axb4 {[%emt 0:00:23]} axb4 {[%emt 0:00:07]} 37. Na4 {[%emt 0:00:06]} Ra7 {[%emt 0:01:06]} 38. b3 {[%emt 0:00:35]} Nd7 {[%emt 0:02:18]} 39. Qc2 {[%emt 0:01:01]} Nf6 {[%emt 0:01:38]} 40. Qe2 {[%emt 0:01:26]} Nd7 {[%emt 0:00:13]} 41. Qc2 {[%emt 0:00:10]} Nf6 {[%emt 0:00:15]} 42. Qe2 {[%emt 0:00:04]} 1/2-1/2

[Event "EYCC Open U14 2021"]
[Site "Tornelo"]
[Date "2021.10.15"]
[Round "4.6"]
[White "Palczert, Matyas"]
[Black "Ince, Taylan Ruzgar"]
[Result "1-0"]
[ECO "B40"]
[WhiteElo "2204"]
[BlackElo "2124"]
[Annotator "ChessBase"]
[PlyCount "77"]
[EventDate "2021.10.15"]
[EventType "swiss"]
[EventCountry "NET"]
[SourceTitle "playchess.com"]
[Source "ChessBase"]
[SourceQuality "1"]
[TimeControl "5400+30"]

1. e4 {[%emt 0:00:30]} c5 {[%emt 0:01:00]} 2. Nf3 {[%emt 0:00:20]} e6 {[%emt 0:00:07]} 3. g3 {[%emt 0:01:06]} Nc6 {[%emt 0:00:46]} 4. Bg2 {[%emt 0:00:36]} Nf6 {[%emt 0:00:42]} 5. Nc3 {[%emt 0:00:24]} d5 {[%emt 0:02:57]} 6. exd5 {[%emt 0:00:29]} Nxd5 {[%emt 0:00:35]} 7. Nxd5 {[%emt 0:00:53]} Qxd5 {[%emt 0:08:25]} 8. O-O {[%emt 0:00:37]} Be7 {[%emt 0:01:20]} 9. d3 {[%emt 0:01:54]} O-O {[%emt 0:12:03]} 10. Be3 {[%emt 0:02:00]} Qh5 {[%emt 0:02:19]} 11. d4 {[%emt 0:11:35]} Rd8 {[%emt 0:05:23]} 12. Ne5 {[%emt 0:03:33]} Qxd1 {[%emt 0:01:59]} 13. Raxd1 {[%emt 0:00:16]} Nxe5 {[%emt 0:08:42]} 14. dxe5 {[%emt 0:00:10]} Bd7 {[%emt 0:01:51]} 15. b3 {[%emt 0:10:18]} Rab8 {[%emt 0:02:58]} 16. f4 {[%emt 0:02:07]} b6 {[%emt 0:02:17]} 17. Be4 {[%emt 0:02:14]} g6 {[%emt 0:01:37]} 18. c4 {[%emt 0:09:21]} Kf8 {[%emt 0:04:19]} 19. g4 {[%emt 0:02:23]} Rbc8 {[%emt 0:02:05]} 20. f5 {[%emt 0:04:28]} Ke8 {[%emt 0:08:43]} 21. f6 {[%emt 0:11:01]} Bf8 {[%emt 0:00:08]} 22. g5 {[%emt 0:01:02]} Bc6 {[%emt 0:01:14]} 23. Bxc6+ {[%emt 0:00:50]} Rxc6 {[%emt 0:00:05]} 24. Rxd8+ {[%emt 0:00:26]} Kxd8 {[%emt 0:00:04]} 25. Rf3 {[%emt 0:00:38]} Rc7 {[%emt 0:09:33]} 26. Kf1 {[%emt 0:01:25]} Rd7 {[%emt 0:09:24]} 27. Ke2 {[%emt 0:00:43]} b5 {[%emt 0:01:35]} 28. Rh3 {[%emt 0:01:27]} b4 {[%emt 0:04:45]} 29. Rxh7 {[%emt 0:00:45]} Ke8 {[%emt 0:00:52]} 30. Rh8 {[%emt 0:00:48]} Rc7 {[%emt 0:00:05]} 31. h4 {[%emt 0:01:17]} Rc8 {[%emt 0:00:06]} 32. h5 {[%emt 0:01:39]} gxh5 {[%emt 0:00:21]} 33. Rxh5 {[%emt 0:00:17]} a5 {[%emt 0:00:37]} 34. Rh8 {[%emt 0:01:22]} Kd7 {[%emt 0:02:18]} 35. Kf3 {[%emt 0:01:26]} Rd8 {[%emt 0:02:24]} 36. Kg4 {[%emt 0:02:17]} Rc8 {[%emt 0:01:59]} 37. Kh5 {[%emt 0:01:47]} Ke8 {[%emt 0:01:07]} 38. g6 {[%emt 0:00:54]} fxg6+ {[%emt 0:00:14]} 39. Kxg6 {[%emt 0:00:17]} 1-0

[Event "EYCC Open U14 2021"]
[Site "Tornelo"]
[Date "2021.10.15"]
[Round "4.7"]
[White "Taspinar, Yanki"]
[Black "Andreev, Konstantin"]
[Result "1/2-1/2"]
[ECO "D27"]
[WhiteElo "2147"]
[BlackElo "2238"]
[Annotator "ChessBase"]
[PlyCount "116"]
[EventDate "2021.10.15"]
[EventType "swiss"]
[EventCountry "NET"]
[SourceTitle "playchess.com"]
[Source "ChessBase"]
[SourceQuality "1"]
[TimeControl "5400+30"]

1. d4 {[%emt 0:00:30]} d5 {[%emt 0:00:39]} 2. c4 {[%emt 0:00:08]} dxc4 {[%emt 0:00:07]} 3. Nf3 {[%emt 0:00:14]} Nf6 {[%emt 0:00:11]} 4. e3 {[%emt 0:00:11]} e6 {[%emt 0:00:06]} 5. Bxc4 {[%emt 0:00:11]} a6 {[%emt 0:00:08]} 6. a4 {[%emt 0:00:43]} c5 {[%emt 0:00:08]} 7. O-O {[%emt 0:00:10]} Nc6 {[%emt 0:00:08]} 8. Nc3 {[%emt 0:00:27]} Be7 {[%emt 0:00:08]} 9. Qe2 {[%emt 0:02:57]} cxd4 {[%emt 0:01:05]} 10. Rd1 {[%emt 0:00:14]} e5 {[%emt 0:06:45]} 11. exd4 {[%emt 0:00:30]} exd4 {[%emt 0:02:47]} 12. Nxd4 {[%emt 0:18:16]} Nxd4 {[%emt 0:00:11]} 13. Qe5 {[%emt 0:03:25]} Qd6 {[%emt 0:13:18]} 14. Qxd4 {[%emt 0:02:06]} Qxd4 {[%emt 0:02:01]} 15. Rxd4 {[%emt 0:00:12]} Be6 {[%emt 0:05:41]} 16. Bxe6 {[%emt 0:01:34]} fxe6 {[%emt 0:00:16]} 17. Be3 {[%emt 0:05:13]} Kf7 {[%emt 0:01:50]} 18. Rad1 {[%emt 0:04:32]} Rhd8 {[%emt 0:02:25]} 19. Kf1 {[%emt 0:01:19]} e5 {[%emt 0:01:43]} 20. Rxd8 {[%emt 0:02:55]} Bxd8 {[%emt 0:01:52]} 21. Ke2 {[%emt 0:01:03]} Ke6 {[%emt 0:00:19]} 22. f3 {[%emt 0:02:04]} Be7 {[%emt 0:06:24]} 23. Ne4 {[%emt 0:12:43]} Nd5 {[%emt 0:07:25]} 24. Rc1 {[%emt 0:01:38]} Rd8 {[%emt 0:01:06]} 25. g3 {[%emt 0:04:00]} h6 {[%emt 0:04:16]} 26. Bd2 {[%emt 0:03:11]} Rg8 {[%emt 0:06:25]} 27. h4 {[%emt 0:02:01]} Rd8 {[%emt 0:02:23]} 28. Ba5 {[%emt 0:01:25]} Rf8 {[%emt 0:03:47]} 29. Bd2 {[%emt 0:01:45]} Rd8 {[%emt 0:00:08]} 30. Rc2 {[%emt 0:04:24]} Rf8 {[%emt 0:01:56]} 31. b3 {[%emt 0:01:06]} Rd8 {[%emt 0:00:56]} 32. Rc4 {[%emt 0:00:38]} Nb6 {[%emt 0:06:00]} 33. Rc7 {[%emt 0:00:40]} Rd7 {[%emt 0:00:09]} 34. Rc2 {[%emt 0:00:32]} Nd5 {[%emt 0:04:34]} 35. Rc8 {[%emt 0:01:56]} Nf6 {[%emt 0:00:45]} 36. Bc3 {[%emt 0:00:57]} Nxe4 {[%emt 0:01:12]} 37. fxe4 {[%emt 0:00:15]} h5 {[%emt 0:01:30]} 38. b4 {[%emt 0:06:59]} g6 {[%emt 0:03:38]} 39. Rg8 {[%emt 0:07:59]} Kf7 {[%emt 0:00:31]} 40. Rb8 {[%emt 0:00:33]} Bd6 {[%emt 0:00:13]} 41. Ra8 {[%emt 0:00:27]} Rc7 {[%emt 0:00:51]} 42. Kd3 {[%emt 0:00:10]} Ke6 {[%emt 0:00:39]} 43. Rg8 {[%emt 0:01:09]} Kf7 {[%emt 0:00:16]} 44. Rh8 {[%emt 0:00:36]} Ke6 {[%emt 0:00:15]} 45. Ra8 {[%emt 0:01:27]} Kf7 {[%emt 0:00:34]} 46. Bd2 {[%emt 0:01:47]} Ke6 {[%emt 0:00:27]} 47. Rg8 {[%emt 0:00:44]} Kf7 {[%emt 0:00:14]} 48. Rh8 {[%emt 0:00:18]} Ke6 {[%emt 0:00:15]} 49. Ra8 {[%emt 0:00:15]} Rf7 {[%emt 0:00:16]} 50. Ke2 {[%emt 0:01:17]} Rc7 {[%emt 0:00:26]} 51. Kd3 {[%emt 0:00:52]} Rf7 {[%emt 0:00:07]} 52. Ke2 {[%emt 0:00:06]} Rc7 {[%emt 0:00:08]} 53. Rg8 {[%emt 0:01:23]} Kf7 {[%emt 0:00:26]} 54. Rd8 {[%emt 0:00:29]} Ke6 {[%emt 0:00:13]} 55. Kd3 {[%emt 0:00:47]} Rf7 {[%emt 0:00:26]} 56. Ke2 {[%emt 0:00:32]} Rc7 {[%emt 0:00:43]} 57. Kd3 {[%emt 0:00:39]} Rf7 {[%emt 0:00:07]} 58. Ke2 {[%emt 0:00:37]} Rc7 {[%emt 0:00:08]} 1/2-1/2

[Event "EYCC Open U14 2021"]
[Site "Tornelo"]
[Date "2021.10.15"]
[Round "4.8"]
[White "Ponomarev, Vsevolod"]
[Black "Veselov, Yaroslav"]
[Result "1/2-1/2"]
[ECO "B84"]
[WhiteElo "2135"]
[BlackElo "1922"]
[Annotator "ChessBase"]
[PlyCount "90"]
[EventDate "2021.10.15"]
[EventType "swiss"]
[EventCountry "NET"]
[SourceTitle "playchess.com"]
[Source "ChessBase"]
[SourceQuality "1"]
[TimeControl "5400+30"]

1. e4 {[%emt 0:00:56]} c5 {[%emt 0:03:47]} 2. Nf3 {[%emt 0:00:03]} e6 {[%emt 0:00:06]} 3. d4 {[%emt 0:00:03]} cxd4 {[%emt 0:00:04]} 4. Nxd4 {[%emt 0:00:02]} Nc6 {[%emt 0:00:05]} 5. Nc3 {[%emt 0:00:03]} Qc7 {[%emt 0:00:05]} 6. Be2 {[%emt 0:00:05]} a6 {[%emt 0:00:05]} 7. f4 {[%emt 0:00:18]} d6 {[%emt 0:01:02]} 8. Be3 {[%emt 0:00:16]} Nf6 {[%emt 0:00:05]} 9. Qd2 {[%emt 0:00:48]} Be7 {[%emt 0:00:42]} 10. O-O-O {[%emt 0:00:14]} O-O {[%emt 0:00:31]} 11. g4 {[%emt 0:00:41]} b5 {[%emt 0:05:28]} 12. g5 {[%emt 0:01:48]} Nd7 {[%emt 0:00:26]} 13. a3 {[%emt 0:04:19]} Bb7 {[%emt 0:02:17]} 14. Rhf1 {[%emt 0:06:03]} Nxd4 {[%emt 0:02:18]} 15. Bxd4 {[%emt 0:01:00]} e5 {[%emt 0:01:10]} 16. Be3 {[%emt 0:00:53]} exf4 {[%emt 0:00:04]} 17. Bxf4 {[%emt 0:00:05]} Ne5 {[%emt 0:00:04]} 18. Nd5 {[%emt 0:04:56]} Bxd5 {[%emt 0:00:17]} 19. exd5 {[%emt 0:00:29]} Rfd8 {[%emt 0:06:26]} 20. Bd3 {[%emt 0:04:01]} Bf8 {[%emt 0:04:02]} 21. Bxe5 {[%emt 0:13:27]} dxe5 {[%emt 0:00:49]} 22. h4 {[%emt 0:02:14]} b4 {[%emt 0:16:25]} 23. axb4 {[%emt 0:00:08]} Rab8 {[%emt 0:00:24]} 24. g6 {[%emt 0:12:25]} hxg6 {[%emt 0:16:49]} 25. h5 {[%emt 0:01:39]} Bxb4 {[%emt 0:00:04]} 26. c3 {[%emt 0:06:32]} e4 {[%emt 0:08:10]} 27. Bxe4 {[%emt 0:07:07]} Rdc8 {[%emt 0:00:44]} 28. Kc2 {[%emt 0:11:09]} Qc4 {[%emt 0:12:25]} 29. Qd3 {[%emt 0:03:33]} gxh5 {[%emt 0:05:07]} 30. Qxc4 {[%emt 0:00:52]} Rxc4 {[%emt 0:00:02]} 31. Kd3 {[%emt 0:00:16]} Rcc8 {[%emt 0:00:06]} 32. cxb4 {[%emt 0:01:14]} Rxb4 {[%emt 0:00:03]} 33. Rc1 {[%emt 0:02:19]} Re8 {[%emt 0:01:11]} 34. Rfe1 {[%emt 0:02:18]} Rxb2 {[%emt 0:01:59]} 35. Rb1 {[%emt 0:00:04]} Rf2 {[%emt 0:02:51]} 36. Rf1 {[%emt 0:01:43]} Ra2 {[%emt 0:01:38]} 37. Ra1 {[%emt 0:00:08]} Rb2 {[%emt 0:00:47]} 38. Rab1 {[%emt 0:00:39]} Ra2 {[%emt 0:00:16]} 39. Ra1 {[%emt 0:00:20]} Rb2 {[%emt 0:00:03]} 40. Rfb1 {[%emt 0:01:08]} Rh2 {[%emt 0:00:07]} 41. Rh1 {[%emt 0:00:18]} Rb2 {[%emt 0:00:10]} 42. Rab1 {[%emt 0:01:24]} Ra2 {[%emt 0:00:05]} 43. Ra1 {[%emt 0:02:55]} Rb2 {[%emt 0:00:22]} 44. Rhb1 {[%emt 0:00:43]} Rh2 {[%emt 0:00:06]} 45. Rh1 {[%emt 0:01:18]} Rb2 {[%emt 0:00:06]} 1/2-1/2

[Event "EYCC Open U14 2021"]
[Site "Tornelo"]
[Date "2021.10.15"]
[Round "4.9"]
[White "Macias Pino, Diego"]
[Black "Ciocani, Iosif"]
[Result "1-0"]
[ECO "B38"]
[WhiteElo "2365"]
[BlackElo "2026"]
[Annotator "ChessBase"]
[PlyCount "47"]
[EventDate "2021.10.15"]
[EventType "swiss"]
[EventCountry "NET"]
[SourceTitle "playchess.com"]
[Source "ChessBase"]
[SourceQuality "1"]
[TimeControl "5400+30"]

1. e4 {[%emt 0:00:30]} c5 {[%emt 0:00:35]} 2. Nf3 {[%emt 0:00:06]} Nc6 {[%emt 0:00:23]} 3. d4 {[%emt 0:00:17]} cxd4 {[%emt 0:00:07]} 4. Nxd4 {[%emt 0:00:05]} g6 {[%emt 0:00:18]} 5. c4 {[%emt 0:01:17]} Bg7 {[%emt 0:01:01]} 6. Be3 {[%emt 0:00:07]} d6 {[%emt 0:00:11]} 7. Nc3 {[%emt 0:00:28]} Nf6 {[%emt 0:00:07]} 8. Be2 {[%emt 0:00:38]} O-O {[%emt 0:00:26]} 9. O-O {[%emt 0:00:35]} a5 {[%emt 0:00:22]} 10. c5 {[%emt 0:17:05]} Re8 {[%emt 0:09:19]} 11. Rc1 {[%emt 0:12:59]} Bf8 {[%emt 0:19:31]} 12. cxd6 {[%emt 0:03:45]} exd6 {[%emt 0:00:46]} 13. Bg5 {[%emt 0:02:53]} Be7 {[%emt 0:03:05]} 14. Ndb5 {[%emt 0:02:27]} Be6 {[%emt 0:09:49]} 15. Kh1 {[%emt 0:06:08]} Qd7 {[%emt 0:06:41]} 16. f3 {[%emt 0:05:14]} Red8 {[%emt 0:05:38]} 17. Na4 {[%emt 0:01:40]} Ra6 {[%emt 0:12:20]} 18. Nbc3 {[%emt 0:01:21]} Nb4 {[%emt 0:00:17]} 19. a3 {[%emt 0:00:48]} Nc6 {[%emt 0:01:01]} 20. Bxa6 {[%emt 0:01:28]} bxa6 {[%emt 0:00:03]} 21. Nb6 {[%emt 0:01:20]} Qb7 {[%emt 0:00:08]} 22. Bxf6 {[%emt 0:00:15]} Bxf6 {[%emt 0:00:32]} 23. Ncd5 {[%emt 0:00:07]} Bg7 {[%emt 0:00:43]} 24. Rxc6 {[%emt 0:01:12]} 1-0

[Event "EYCC Open U14 2021"]
[Site "Tornelo"]
[Date "2021.10.15"]
[Round "4.10"]
[White "Kanov, Nikola"]
[Black "Colev, Ivor"]
[Result "1-0"]
[ECO "B81"]
[WhiteElo "2150"]
[BlackElo "2004"]
[Annotator "ChessBase"]
[PlyCount "71"]
[EventDate "2021.10.15"]
[EventType "swiss"]
[EventCountry "NET"]
[SourceTitle "playchess.com"]
[Source "ChessBase"]
[SourceQuality "1"]
[TimeControl "5400+30"]

1. e4 {[%emt 0:00:30]} c5 {[%emt 0:00:34]} 2. Nf3 {[%emt 0:00:06]} d6 {[%emt 0:00:05]} 3. d4 {[%emt 0:00:05]} cxd4 {[%emt 0:00:01]} 4. Nxd4 {[%emt 0:00:06]} Nf6 {[%emt 0:00:02]} 5. Nc3 {[%emt 0:00:06]} e6 {[%emt 0:00:08]} 6. g4 {[%emt 0:00:24]} h6 {[%emt 0:00:10]} 7. Be3 {[%emt 0:00:20]} Nc6 {[%emt 0:01:01]} 8. Rg1 {[%emt 0:00:33]} Be7 {[%emt 0:09:30]} 9. h4 {[%emt 0:02:50]} h5 {[%emt 0:04:22]} 10. gxh5 {[%emt 0:00:12]} Nxh5 {[%emt 0:00:05]} 11. Be2 {[%emt 0:00:10]} g6 {[%emt 0:00:48]} 12. Qd2 {[%emt 0:01:05]} a6 {[%emt 0:12:13]} 13. Nxc6 {[%emt 0:04:43]} bxc6 {[%emt 0:00:10]} 14. O-O-O {[%emt 0:00:34]} Qc7 {[%emt 0:01:11]} 15. Bc4 {[%emt 0:02:56]} Rb8 {[%emt 0:04:19]} 16. Bb3 {[%emt 0:02:35]} Bd7 {[%emt 0:03:17]} 17. f4 {[%emt 0:00:43]} Qb7 {[%emt 0:12:06]} 18. f5 {[%emt 0:06:54]} c5 {[%emt 0:23:25]} 19. Qe2 {[%emt 0:11:02]} Bb5 {[%emt 0:06:23]} 20. Nxb5 {[%emt 0:06:49]} Qxb5 {[%emt 0:00:28]} 21. c4 {[%emt 0:01:04]} Qc6 {[%emt 0:07:36]} 22. fxe6 {[%emt 0:01:07]} fxe6 {[%emt 0:00:08]} 23. Qc2 {[%emt 0:00:22]} Kd8 {[%emt 0:02:04]} 24. Rxg6 {[%emt 0:11:50]} Bf6 {[%emt 0:03:53]} 25. Rxf6 {[%emt 0:03:11]} Nxf6 {[%emt 0:00:18]} 26. Bg5 {[%emt 0:00:07]} Ke7 {[%emt 0:01:10]} 27. Ba4 {[%emt 0:00:22]} Qb7 {[%emt 0:03:21]} 28. e5 {[%emt 0:00:29]} dxe5 {[%emt 0:01:00]} 29. Rd7+ {[%emt 0:00:57]} Qxd7 {[%emt 0:00:03]} 30. Bxd7 {[%emt 0:00:12]} Kxd7 {[%emt 0:00:06]} 31. Bxf6 {[%emt 0:00:06]} Rhg8 {[%emt 0:00:14]} 32. Qh7+ {[%emt 0:01:18]} Kc6 {[%emt 0:00:30]} 33. Qe4+ {[%emt 0:00:06]} Kb6 {[%emt 0:00:27]} 34. Qxe5 {[%emt 0:00:45]} Rg1+ {[%emt 0:00:40]} 35. Kc2 {[%emt 0:00:20]} Rg2+ {[%emt 0:00:02]} 36. Kc3 {[%emt 0:00:09]} 1-0